[Event "VII Totalizator Sportowy 2022"]
[Site "Bydgoszcz"]
[Date "2022.07.02"]
[Round "8.12"]
[White "Paprocki, Antoni"]
[Black "Navaratnam, Rohan Shan Tze"]
[Result "1/2-1/2"]
[ECO "D30"]
[WhiteElo "1851"]
[BlackElo "2071"]
[Annotator "NA RC"]
[PlyCount "69"]
[EventDate "2022.06.25"]
[EventType "swiss"]
[EventCountry "POL"]
[SourceTitle "playchess.com"]
[Source "ChessBase"]
[SourceQuality "1"]
[TimeControl "40/5400+30:1800+30"]

1. d4 {[%emt 0:00:04]} d5 {[%emt 0:00:09]} 2. c4 {[%emt 0:00:08]} e6 {[%emt 0:00:08]} 3. Nf3 {[%emt 0:00:16]} c5 {[%emt 0:00:08]} 4. cxd5 {[%emt 0:00:30]} exd5 {[%emt 0:00:03]} 5. g3 {[%emt 0:00:07]} Nc6 {[%emt 0:00:06]} 6. Bg2 {[%emt 0:00:18]} Nf6 {[%emt 0:00:07]} 7. O-O {[%emt 0:00:16]} Be7 {[%emt 0:00:05]} 8. dxc5 {[%emt 0:00:24]} Bxc5 {[%emt 0:00:08]} 9. Nc3 {[%emt 0:00:05]} O-O {[%emt 0:00:09]} 10. a3 {[%emt 0:00:04]} Re8 {[%emt 0:03:34]} 11. b4 {[%emt 0:00:27]} Bf8 {[%emt 0:00:05]} 12. Bg5 {[%emt 0:00:42]} Be6 {[%emt 0:02:03]} 13. Ra2 {[%emt 0:00:22]} Rc8 {[%emt 0:04:56]} 14. Bxf6 {[%emt 0:01:31]} gxf6 {[%emt 0:01:38]} 15. Nb5 {[%emt 0:01:01]} a5 {[%emt 0:01:56]} 16. bxa5 {[%emt 0:07:16]} Qxa5 {[%emt 0:01:47]} 17. Nbd4 {[%emt 0:02:11]} Ne5 {[%emt 0:02:55]} 18. Nxe5 {[%emt 0:16:13]} fxe5 {[%emt 0:00:13]} 19. Nxe6 {[%emt 0:00:03]} fxe6 {[%emt 0:00:37]} 20. e4 {[%emt 0:00:04]} d4 {[%emt 0:03:56]} 21. f4 {[%emt 0:05:34]} exf4 {[%emt 0:08:50]} 22. gxf4 {[%emt 0:01:45]} Qc3 {[%emt 0:12:55]} 23. Qg4+ {[%emt 0:04:04]} Kh8 {[%emt 0:00:23]} 24. f5 {[%emt 0:20:36]} exf5 {[%emt 0:08:28]} 25. exf5 {[%emt 0:00:17]} d3 {[%emt 0:01:33]} 26. f6 {[%emt 0:05:53]} Re1 {[%emt 0:06:10]} 27. f7 {[%emt 0:05:53]} Bc5+ {[%emt 0:05:48]} 28. Kh1 {[%emt 0:00:05]} Rf8 {[%emt 0:00:12]} 29. Qf4 {[%emt 0:06:29]} Be3 {[%emt 0:15:02]} 30. Qd6 {[%emt 0:01:23]} Rxf1+ {[%emt 0:00:32]} 31. Bxf1 {[%emt 0:00:01]} Qg7 {[%emt 0:00:18]} 32. Rg2 {[%emt 0:03:13]} Qxf7 {[%emt 0:00:07]} 33. Qe5+ {[%emt 0:00:30]} Qf6 {[%emt 0:00:05]} 34. Qxf6+ {[%emt 0:00:06]} Rxf6 {[%emt 0:00:04]} 35. Bxd3 {[%emt 0:00:03]} 1/2-1/2

[Event "VII Totalizator Sportowy 2022"]
[Site "Bydgoszcz"]
[Date "2022.07.02"]
[Round "8.13"]
[White "Hnydiuk, Aleksander"]
[Black "Paprocki, Jaroslaw"]
[Result "1-0"]
[ECO "C44"]
[WhiteElo "2394"]
[BlackElo "2165"]
[Annotator "TA"]
[PlyCount "59"]
[EventDate "2022.06.25"]
[EventType "swiss"]
[EventCountry "POL"]
[SourceTitle "playchess.com"]
[Source "ChessBase"]
[SourceQuality "1"]
[TimeControl "40/5400+30:1800+30"]

{[%evp 9,59,14,12,-30,-12,-20,-18,-20,0,11,6,6,24,25,25,24,25,29,27,35,31,0,63,7,106,95,438,437,421,420,531,533,656,635,1081,765,981,977,956,950,1412,1375,5365,5352,1511,1470,29991,29992,29994,29995,29995,29996]} 1. e4 {[%emt 0:00:04]} e5 {[%emt 0:00:16]} 2. Nf3 {[%emt 0:00:03]} Nc6 {[%emt 0:00:15]} 3. d4 {[%emt 0:00:08]} exd4 {[%emt 0:00:11]} 4. Nxd4 {[%emt 0:00:04]} Nf6 {[%emt 0:00:31][%cal Bg8f6,Bf6d5,Bd5e7,Be7f5][%mdl 32]} 5. Nxc6 {[%emt 0:00:28]} bxc6 {[%emt 0:00:06]} 6. Qe2 {[%emt 0:00:06] C45: Scotch Game.} Bc5 {[%emt 0:00:05] And now ...0-0 would win.} 7. e5 {[%emt 0:00:27]} Nd5 {[%emt 0:00:05]} 8. c4 {[%emt 0:00:17] The position is equal.} (8. Qg4 {is interesting.} Kf8 9. c4 d6 10. Qe4) 8... Ne7 {[%emt 0:00:05] was the old line (8...Nb6).} 9. Be3 {[%emt 0:00:13]} Bxe3 {[%emt 0:01:53]} 10. Qxe3 {[%emt 0:00:05]} d6 {[%emt 0:04:31]} 11. Nc3 {[%emt 0:25:34]} Nf5 {[%emt 0:04:04]} 12. Qe4 {[%emt 0:01:31]} O-O {[%emt 0:00:12] [#]} 13. O-O-O $146 {[%emt 0:02:23]} ({Predecessor:} 13. Bd3 Re8 14. f4 Rb8 15. O-O-O Qh4 16. g3 Qh6 17. Kb1 dxe5 18. fxe5 Ne3 19. Rde1 Ng4 {½-½ (19) Henke,S (1644)-Perez,F (1734) LSS email 2019}) 13... Rb8 {[%emt 0:04:01]} 14. exd6 {[%emt 0:20:20]} cxd6 {[%emt 0:07:10]} 15. Bd3 {[%emt 0:01:09]} Qf6 {[%emt 0:23:54]} ({Black should try} 15... c5 $11) 16. Rhe1 {[%emt 0:09:55]} ({Better is} 16. Qf4 $14) 16... Bd7 {[%emt 0:02:11]} (16... Qh6+ $1 $11 {remains equal.} 17. Kb1 Bd7) 17. Qf4 $16 {[%emt 0:06:27] Black must now prevent Bxf5.} Rxb2 $2 {[%emt 0:06:28][%mdl 8192] [#] This costs Black the game.} 18. Kxb2 $18 {[%emt 0:01:16]} Rb8+ {[%emt 0:00:15]} 19. Kc2 {[%emt 0:00:13]} g5 {[%emt 0:01:19]} 20. Qd2 {[%emt 0:03:10]} Nd4+ {[%emt 0:00:35]} 21. Kc1 {[%emt 0:00:04]} Rb3 {[%emt 0:01:24][%cal Ob3c3]} 22. Bxh7+ {[%emt 0:01:53]} Kxh7 {[%emt 0:00:15]} 23. Qxd4 {[%emt 0:00:07]} (23. Ne4 $2 {[#] is a self mate.} Ne2+ $1 {[%mdl 512]} 24. Qxe2 Qa1+ 25. Kd2 Qb2#) 23... Rxc3+ {[%emt 0:00:56]} 24. Kb2 {[%emt 0:00:08]} Rc2+ {[%emt 0:01:51]} 25. Kxc2 {[%emt 0:00:07]} Bf5+ {[%emt 0:00:02]} 26. Kb2 {[%emt 0:00:11]} Qd8 {[%emt 0:00:12]} 27. Ka1 {[%emt 0:00:20]} Qa5 {[%emt 0:00:11]} 28. Re8 {[%emt 0:00:51] White mates.} f6 {[%emt 0:01:50]} 29. Qxf6 {[%emt 0:00:41][%csl Gf6][%cal Re8h8]} Qc3+ {[%emt 0:01:39]} 30. Qxc3 {[%emt 0:00:06] Weighted Error Value: White=0.14 (very precise) /Black=0.97} 1-0

[Event "VII Totalizator Sportowy 2022"]
[Site "Bydgoszcz"]
[Date "2022.07.02"]
[Round "8.14"]
[White "Rudzinska, Michalina"]
[Black "Lambrecht, Tomasz"]
[Result "1-0"]
[ECO "C77"]
[WhiteElo "2236"]
[BlackElo "1956"]
[Annotator "TA"]
[PlyCount "63"]
[EventDate "2022.06.25"]
[EventType "swiss"]
[EventCountry "POL"]
[SourceTitle "playchess.com"]
[Source "ChessBase"]
[SourceQuality "1"]
[TimeControl "40/5400+30:1800+30"]

{[%evp 15,63,5,7,-14,0,-4,19,0,17,0,0,0,0,0,0,0,35,32,44,32,126,112,323,335,314,333,323,331,308,297,372,362,465,472,461,454,637,641,626,641,812,788,791,775,1118,1041,1662,1585,29992,2159]} 1. e4 {[%emt 0:00:05]} e5 {[%emt 0:00:45]} 2. Nf3 {[%emt 0:00:09]} Nc6 {[%emt 0:00:13]} 3. Bb5 {[%emt 0:00:09][%cal Bf1b5,Bb5a4,Ba4b3][%mdl 32]} a6 {[%emt 0:00:39]} 4. Ba4 {[%emt 0:00:10]} Nf6 {[%emt 0:00:05]} 5. d3 {[%emt 0:00:08]} b5 {[%emt 0:00:09]} 6. Bb3 {[%emt 0:00:07]} Bc5 {[%emt 0:00:07]} 7. O-O {[%emt 0:00:29]} d6 {[%emt 0:00:10]} 8. c3 {[%emt 0:00:08]} h6 {[%emt 0:00:06]} 9. Be3 {[%emt 0:01:51] Recently 9.Nbd2 got a lot of attention. C78: Ruy Lopez: Archangelsk and Möller Defences.} O-O {[%emt 0:08:56]} 10. Nbd2 {[%emt 0:02:10]} Re8 {[%emt 0:11:15]} 11. h3 {[%emt 0:06:00] The position is equal.} Bb7 {[%emt 0:06:26] [#]} 12. Nh4 $146 {[%emt 0:12:59][%cal Bf3h4,Bh4f5,Bf5h6][%mdl 32]} ({Predecessor:} 12. a4 Qb8 13. axb5 axb5 14. Qe2 Rxa1 15. Rxa1 Bxe3 16. Qxe3 b4 17. Nh4 bxc3 18. bxc3 {0-1 (32) Vallejo Diaz,J (2365)-Ibrahimli,M (2436) Chess.com INT 2021}) 12... Na5 {[%emt 0:02:33]} 13. Nf5 {[%emt 0:02:31]} Nxb3 {[%emt 0:01:01]} 14. axb3 {[%emt 0:00:14]} Bxe3 {[%emt 0:14:47]} 15. fxe3 {[%emt 0:00:49]} d5 {[%emt 0:00:22]} 16. exd5 {[%emt 0:06:35]} Qxd5 {[%emt 0:06:19][%csl Gb7][%cal Rd5g2]} 17. Qe2 {[%emt 0:02:32][%cal Of5h6]} Rad8 {[%emt 0:08:15]} (17... Qd8 $14) 18. Nxh6+ $1 $16 {[%emt 0:08:07]} Kh7 $2 {[%emt 0:13:53] [#] Loses the game.} (18... gxh6 $16 19. Rxf6 Qxd3 20. Qg4+ Kf8) 19. Rxf6 $1 $18 {[%emt 0:13:08][%mdl 512]} gxf6 {[%emt 0:00:32]} 20. Nf5 {[%emt 0:00:47] Pair of Knights!} Qxg2+ {[%emt 0:01:28]} 21. Qxg2 {[%emt 0:00:07] The board is on fire.} Bxg2 {[%emt 0:00:02]} 22. Kxg2 {[%emt 0:00:09]} Rxd3 {[%emt 0:00:03]} 23. Ne4 {[%emt 0:00:10]} Re6 {[%emt 0:10:06]} 24. Kf3 {[%emt 0:04:13]} Kg6 {[%emt 0:05:30]} 25. Kg4 {[%emt 0:04:31]} Rb6 {[%emt 0:01:33]} (25... b4 $142 26. Nc5 (26. cxb4 Rxb3 27. h4 Rxb4 $18) 26... Rd8 27. Nh4+ Kg7 28. Nxe6+ fxe6 29. Rxa6 Kf7) 26. b4 {[%emt 0:06:20]} Rd8 {[%emt 0:01:01]} 27. Rg1 {[%emt 0:02:36]} Kh7 {[%emt 0:01:03] White must now prevent ...Rg8+.} 28. Kh5 {[%emt 0:02:25] Rg7+ would kill now.} Rg8 {[%emt 0:01:06] Against Rg7+} 29. Rd1 {[%emt 0:01:08]} Rg2 {[%emt 0:00:10]} 30. Rd7 {[%emt 0:00:30][%csl LRc7,LRf7]} Kh8 {[%emt 0:01:21]} 31. Rxf7 {[%emt 0:00:41]} Rxb2 {[%emt 0:00:33]} 32. Nxf6 {[%emt 0:01:13] Weighted Error Value: White=0.03 (flawless) /Black=0.73} (32. Ne7 $142 Rd2 33. Nxd2 Re6 34. Ne4 f5 35. Nxf5 Kg8 36. Ng5 e4 37. Rg7+ Kf8 38. Nxe6+ Ke8 39. Re7#) 1-0

[Event "VII Totalizator Sportowy 2022"]
[Site "Bydgoszcz"]
[Date "2022.07.02"]
[Round "8.15"]
[White "Kacprzak, Karol"]
[Black "Laux, Dominik"]
[Result "1/2-1/2"]
[ECO "D47"]
[WhiteElo "2200"]
[BlackElo "2263"]
[Annotator "TA"]
[PlyCount "78"]
[EventDate "2022.06.25"]
[EventType "swiss"]
[EventCountry "POL"]
[SourceTitle "playchess.com"]
[Source "ChessBase"]
[SourceQuality "1"]
[TimeControl "40/5400+30:1800+30"]

{[%evp 24,78,0,0,8,9,26,31,37,19,27,25,64,69,54,61,62,63,65,37,37,46,31,39,90,85,81,68,98,95,100,85,86,88,103,77,92,64,137,122,111,87,91,12,16,14,39,21,47,34,106,0,24,0,89,0,66]} 1. d4 {[%emt 0:00:02]} d5 {[%emt 0:02:31]} 2. c4 {[%emt 0:00:15]} c6 {[%emt 0:00:19]} 3. Nc3 {[%emt 0:00:50]} Nf6 {[%emt 0:00:20]} 4. Nf3 {[%emt 0:00:16]} e6 {[%emt 0:01:03]} 5. e3 {[%emt 0:00:31]} Nbd7 {[%emt 0:00:33]} 6. Bd3 {[%emt 0:00:14]} dxc4 {[%emt 0:01:20]} 7. Bxc4 {[%emt 0:00:08]} b5 {[%emt 0:00:33]} 8. Bd3 {[%emt 0:00:19]} Bd6 {[%emt 0:00:52]} 9. e4 {[%emt 0:04:07]} e5 {[%emt 0:02:08]} 10. dxe5 {[%emt 0:26:05]} Nxe5 {[%emt 0:00:07]} 11. Nxe5 {[%emt 0:00:06]} Bxe5 {[%emt 0:00:04]} 12. h3 {[%emt 0:00:53]} O-O {[%emt 0:03:39]} 13. O-O {[%emt 0:00:29]} Be6 {[%emt 0:00:27] D46: Semi-Slav: 5 e3 Nbd7 6 Bd3, Black avoids the Meran.} 14. Be3 {[%emt 0:06:54] [#]} Qe7 $146 {[%emt 0:11:38]} ({Predecessor:} 14... Qa5 15. f4 Bxc3 16. bxc3 Qxc3 17. Rc1 Qa5 18. e5 Nd5 19. Bc5 Rfe8 20. f5 Bd7 21. Bd6 Ne3 22. Qh5 Qd2 23. Be4 Nxf1 24. Rxf1 Qd4+ 25. Kh1 Qxe4 26. f6 Bf5 27. Rxf5 Re6 28. Qg5 {1-0 (28) Jian,A (2091)-Nguyen,Q (2242) Chess.com INT 2021}) 15. Qc2 {[%emt 0:10:33]} Rfd8 {[%emt 0:03:30][%cal Od8d3] White is slightly better.} 16. Rfd1 {[%emt 0:04:07]} Qb4 {[%emt 0:23:42]} 17. Rac1 {[%emt 0:16:42]} Bc4 {[%emt 0:09:02]} 18. Bxc4 {[%emt 0:04:07]} Qxc4 {[%emt 0:00:26]} 19. Rxd8+ {[%emt 0:01:16]} Rxd8 {[%emt 0:00:02]} 20. b3 $1 {[%emt 0:00:08]} Qb4 {[%emt 0:08:40]} 21. f3 {[%emt 0:05:29]} Bd4 {[%emt 0:07:25]} 22. Bxd4 {[%emt 0:01:37]} Qxd4+ {[%emt 0:05:18]} 23. Qf2 {[%emt 0:00:10]} Qxf2+ {[%emt 0:01:55]} (23... g6 $14) 24. Kxf2 $14 {[%emt 0:00:05][%mdl 4096] Endgame KRN-KRN} Kf8 {[%emt 0:03:41]} 25. Ke3 {[%emt 0:04:42]} Ke7 {[%emt 0:01:06]} 26. Ne2 {[%emt 0:00:37] Strongly threatening Nd4.} Kd7 {[%emt 0:02:33]} 27. Nd4 {[%emt 0:00:58]} Rc8 {[%emt 0:00:08]} 28. g4 {[%emt 0:03:18]} Ne8 {[%emt 0:03:59]} 29. e5 {[%emt 0:02:41]} a6 {[%emt 0:02:56]} 30. Rd1 {[%emt 0:01:23]} Kc7 {[%emt 0:02:15]} (30... Ke7 $1 $14) 31. f4 {[%emt 0:02:24]} c5 {[%emt 0:00:40]} 32. Nf3 {[%emt 0:01:24]} h6 {[%emt 0:00:44] Inhibits Ng5.} 33. Nd2 {[%emt 0:02:29] White is more active.} (33. Nh4 $16) 33... Rd8 $11 {[%emt 0:01:03]} 34. Rc1 {[%emt 0:00:09]} Kb6 {[%emt 0:00:30]} 35. Ne4 {[%emt 0:00:11]} Rd5 {[%emt 0:00:20]} 36. Nc3 {[%emt 0:00:20]} Rd4 {[%emt 0:00:06] [#]} (36... Rd7 $14) 37. Ne4 {[%emt 0:00:09]} (37. b4 $1 $16 {[%cal Rb4c5] Hoping for bxc5+.} Kc6 38. Ne4 Rxb4 39. Nxc5 (39. Rxc5+ Kb6 $14)) 37... Rd5 {[%emt 0:00:14]} 38. Nc3 {[%emt 0:00:11]} (38. g5 $11) 38... Rd4 $16 {[%emt 0:00:37]} 39. Ne4 {[%emt 0:01:47]} Rd5 {[%emt 0:00:08] Weighted Error Value: White=0.22 (precise) /Black=0.15 (very precise)} 1/2-1/2

[Event "VII Totalizator Sportowy 2022"]
[Site "Bydgoszcz"]
[Date "2022.07.02"]
[Round "8.16"]
[White "Rog, Bartlomiej"]
[Black "Kowalski, Igor"]
[Result "0-1"]
[ECO "B13"]
[WhiteElo "2055"]
[BlackElo "2370"]
[Annotator "TA"]
[PlyCount "112"]
[EventDate "2022.06.25"]
[EventType "swiss"]
[EventCountry "POL"]
[SourceTitle "playchess.com"]
[Source "ChessBase"]
[SourceQuality "1"]
[TimeControl "40/5400+30:1800+30"]

{[%evp 14,112,-2,1,47,18,15,16,6,17,16,0,5,-10,1,-8,-14,-10,0,0,0,0,0,0,0,0,19,0,0,-129,-121,-133,-85,-98,-82,-79,-59,-104,-104,-201,-197,-194,-202,-199,-191,-260,-246,-219,-225,-108,-6,-6,-6,-137,-137,-136,-128,-129,-129,-181,-6,-181,-6,-6,-6,-6,-6,-962,-869,-1212,-1068,-1093,-1025,-882,-878,-1724,-1438,-1564,-1263,-5716,-11129,-11155,-5416,-29959,-29956,-29961,-29962,-29964,-29966,-29964,-29964,-29961,-29961,-29966,-29963,-29977,-29977,-29976,-29977,-29969,-29968]} 1. e4 {[%emt 0:00:01]} c6 {[%emt 0:01:48]} 2. d4 {[%emt 0:00:08]} d5 {[%emt 0:00:15]} 3. exd5 {[%emt 0:00:27]} cxd5 {[%emt 0:00:03]} 4. c4 {[%emt 0:00:07]} Nf6 {[%emt 0:00:04]} 5. Nf3 {[%emt 0:00:24]} Nc6 {[%emt 0:00:03]} 6. Nc3 {[%emt 0:00:08]} Bg4 {[%emt 0:00:04]} 7. Be3 {[%emt 0:00:09]} e6 {[%emt 0:00:19]} 8. c5 {[%emt 0:00:08]} Nd7 {[%emt 0:07:13] B13: Caro-Kann: Exchange Variation and Panov-Botvinnik Attack.} (8... Be7 $11) 9. Bb5 {[%emt 0:04:07]} Be7 {[%emt 0:06:29]} 10. O-O {[%emt 0:01:01]} O-O {[%emt 0:00:08] The position is equal.} 11. h3 {[%emt 0:00:32]} Bh5 {[%emt 0:00:15] [#]} 12. g4 $146 {[%emt 0:03:10]} ({Predecessor:} 12. Qe2 f5 13. Bxc6 bxc6 14. Bf4 e5 15. Bxe5 Nxe5 16. Qxe5 Bxf3 17. gxf3 {½-½ (17) Vieth,M (1951)-Wilmes,F (2012) GER email 2012}) 12... Bg6 {[%emt 0:00:16]} 13. Bf4 {[%emt 0:03:59]} f5 {[%emt 0:08:17] Hoping for ...fxg4.} 14. Bxc6 {[%emt 0:09:51]} (14. Qe2 {is interesting.} fxg4 15. Qxe6+ Kh8 16. Qxg4 Nf6 17. Qg2) 14... bxc6 {[%emt 0:00:05]} 15. Ne5 {[%emt 0:00:12]} Nxe5 {[%emt 0:01:43]} 16. Bxe5 {[%emt 0:00:12]} fxg4 {[%emt 0:04:24]} 17. hxg4 {[%emt 0:00:13]} Bf6 {[%emt 0:12:33]} 18. Bd6 {[%emt 0:06:33]} Re8 {[%emt 0:00:33]} 19. f4 {[%emt 0:02:02] Inhibits e5.} Qa5 {[%emt 0:03:02]} 20. a3 {[%emt 0:00:26] Against Qb4} Qa6 {[%emt 0:00:13]} 21. Be5 {[%emt 0:05:42]} (21. Rf3 $11 {remains equal.}) 21... Bxe5 $1 $17 {[%emt 0:01:47]} 22. fxe5 {[%emt 0:00:21]} Qc4 {[%emt 0:03:54]} ({Better is} 22... Rf8 23. Qd2 Bd3 24. Rxf8+ Rxf8) 23. Qd2 {[%emt 0:02:31]} Rf8 {[%emt 0:03:29]} 24. Rad1 {[%emt 0:02:11]} Rab8 {[%emt 0:04:01]} 25. Rxf8+ {[%emt 0:08:45]} Rxf8 {[%emt 0:00:05]} 26. Qe3 {[%emt 0:01:10] Inhibits Rf3.} (26. Rc1 $17) 26... h5 $1 $19 {[%emt 0:03:11]} 27. Qe2 {[%emt 0:08:05]} Qxe2 {[%emt 0:04:53]} 28. Nxe2 {[%emt 0:00:08]} hxg4 {[%emt 0:00:11][%mdl 4096] Endgame KRB-KRN} 29. Rf1 {[%emt 0:01:05]} (29. b4 {was necessary.}) 29... Rb8 $1 {[%emt 0:02:48]} 30. b4 {[%emt 0:04:46]} Bd3 {[%emt 0:10:08]} 31. Rf2 {[%emt 0:01:10]} (31. Re1 $19) 31... Bxe2 {[%emt 0:13:48]} (31... Bf5 $17) 32. Rxe2 $17 {[%emt 0:00:16] KR-KR} Kh7 {[%emt 0:00:08][%cal Oa7a5]} 33. Kg2 {[%emt 0:01:38]} (33. Rg2 $11) 33... Kg6 {[%emt 0:00:07][%cal Oa7a5]} 34. Kg3 {[%emt 0:03:03]} Kg5 {[%emt 0:00:27] And now ...a6 would win.} 35. Rf2 {[%emt 0:00:53]} a5 $1 {[%emt 0:01:26]} 36. Rf4 {[%emt 0:00:36]} (36. Rf7 $17 {was called for.}) 36... axb4 $2 {[%emt 0:01:19]} (36... Kh5 $1 $19 37. Rf7 axb4 38. axb4 Rxb4) 37. axb4 $2 {[%emt 0:00:09] [#]} (37. Rxg4+ $11 Kh5 38. Rh4+ Kg6 39. axb4) 37... Rxb4 $2 {[%emt 0:00:29]} ({Black should try} 37... Kh5 $1 $19 38. Rf7 Rxb4) 38. Rxg4+ $11 {[%emt 0:00:10]} Kh6 {[%emt 0:01:30] Threatens to win with ...g5.} 39. Rh4+ $1 {[%emt 0:01:54]} Kg6 {[%emt 0:00:08]} 40. Rf4 $2 {[%emt 0:00:00][%mdl 8192] [#] Black continues to play with concentration.} (40. Rg4+ $11 Kf7 41. Rf4+ Kg6 42. Kf3) 40... Rb3+ $1 $19 {[%emt 0:00:00]} 41. Kf2 {[%emt 0:01:53]} Rd3 {[%emt 0:07:32]} 42. Ke2 {[%emt 0:01:01]} Kg5 {[%emt 0:00:04]} 43. Rf7 {[%emt 0:00:43]} Rxd4 {[%emt 0:00:04]} 44. Rxg7+ {[%emt 0:00:10]} Kf5 {[%emt 0:00:08]} 45. Rc7 {[%emt 0:00:06]} Kxe5 {[%emt 0:00:47]} 46. Rxc6 {[%emt 0:00:08]} Rc4 {[%emt 0:02:16]} 47. Kd3 {[%emt 0:02:05]} Rh4 {[%emt 0:00:07] ( -> ...Rh3+)} 48. Ra6 {[%emt 0:02:56]} Rh3+ {[%emt 0:00:43] Black mates.} 49. Kd2 {[%emt 0:00:10]} d4 {[%emt 0:00:38]} 50. c6 {[%emt 0:06:31]} Rc3 {[%emt 0:00:24]} 51. Ke2 {[%emt 0:01:13]} Kd5 {[%emt 0:00:59]} 52. Ra8 {[%emt 0:00:22]} Rxc6 {[%emt 0:00:07]} 53. Kf3 {[%emt 0:00:36]} Rc3+ {[%emt 0:00:04]} 54. Kf4 {[%emt 0:00:50]} e5+ {[%emt 0:00:03]} 55. Kg4 {[%emt 0:00:12]} Ke4 {[%emt 0:00:07]} 56. Ra1 {[%emt 0:00:23]} d3 {[%emt 0:00:55] Weighted Error Value: White=0.75/Black=0.13 (very precise)} 0-1

[Event "VII Totalizator Sportowy 2022"]
[Site "Bydgoszcz"]
[Date "2022.07.02"]
[Round "8.17"]
[White "Skurniak, Szymon"]
[Black "Fiedorek, Michal"]
[Result "0-1"]
[ECO "A22"]
[WhiteElo "1960"]
[BlackElo "2315"]
[Annotator "TA"]
[PlyCount "82"]
[EventDate "2022.06.25"]
[EventType "swiss"]
[EventCountry "POL"]
[SourceTitle "playchess.com"]
[Source "ChessBase"]
[SourceQuality "1"]
[TimeControl "40/5400+30:1800+30"]

{[%evp 16,82,25,9,16,12,16,-11,33,-27,-10,-20,-17,-13,-15,-13,-6,-20,-19,-22,-21,-19,0,0,0,0,0,-32,0,0,0,0,0,0,0,0,0,0,0,0,41,-26,-38,-40,-34,-60,-57,-71,-62,-314,-49,-205,-17,-737,-733,-704,-704,-720,-706,-1106,-1132,-1132,-820,-940,-960,-942,-880,-1038,-863]} 1. c4 {[%emt 0:00:00]} e5 {[%emt 0:00:22]} 2. Nc3 {[%emt 0:00:54]} Nf6 {[%emt 0:00:30]} 3. g3 {[%emt 0:00:21]} d5 {[%emt 0:00:38]} 4. cxd5 {[%emt 0:00:10]} Nxd5 {[%emt 0:00:15]} 5. Bg2 {[%emt 0:00:06]} Nb6 {[%emt 0:00:33]} 6. Nf3 {[%emt 0:01:01][%cal Bg1f3,Bf3d2,Bd2c4][%mdl 32]} Nc6 {[%emt 0:00:26]} 7. O-O {[%emt 0:00:17]} Be7 {[%emt 0:00:15]} 8. Rb1 {[%emt 0:00:24]} a5 {[%emt 0:01:43]} 9. d3 {[%emt 0:00:39]} O-O {[%emt 0:00:20] A29: English Opening: Four Knights Variation with 4 g3.} 10. Be3 {[%emt 0:01:38]} Be6 {[%emt 0:02:56]} 11. Nd2 {[%emt 0:19:22] [#]} Qd7 $146 {[%emt 0:14:40] The position is equal.} ({Predecessor:} 11... Nd5 12. Nxd5 Bxd5 13. Bxd5 Qxd5 14. Qb3 Qxb3 15. Nxb3 Rfd8 16. Rfc1 f6 17. Nc5 Bxc5 18. Rxc5 {1-0 (67) Sadhwani,R (2545)-Nepomniachtchi,I (2784) Chess.com INT 2020}) 12. Na4 {[%emt 0:07:51]} (12. Bxb6 $14 cxb6 13. Nc4) 12... Nd4 {[%emt 0:18:49]} ({But not} 12... Bxa2 13. Bxb6 Bxb1 14. Qxb1 $11) 13. Nxb6 {[%emt 0:06:16]} cxb6 {[%emt 0:00:26]} 14. Nc4 {[%emt 0:04:11]} Qc7 {[%emt 0:00:19]} 15. Bxd4 {[%emt 0:10:57]} exd4 {[%emt 0:00:29]} 16. a4 {[%emt 0:00:23]} Bc5 {[%emt 0:06:45]} 17. Rc1 {[%emt 0:01:52]} Rfe8 {[%emt 0:00:28]} 18. Qd2 {[%emt 0:05:13]} Qe7 {[%emt 0:00:59]} 19. Rc2 {[%emt 0:08:06]} h5 {[%emt 0:16:16]} 20. Qf4 {[%emt 0:00:42]} g6 {[%emt 0:07:02]} 21. Qe4 {[%emt 0:03:28]} Rab8 {[%emt 0:04:40]} (21... Qd7 $5 {[%cal Re6c4]} 22. Qxb7 Qxa4 $11) 22. Rfc1 {[%emt 0:02:22]} Qd7 {[%emt 0:02:06] White must now prevent ...Bxc4.} 23. Qf4 {[%emt 0:05:20]} Qxa4 {[%emt 0:02:05]} 24. Nd6 {[%emt 0:01:09]} Bxd6 {[%emt 0:05:33]} 25. Qxd6 {[%emt 0:05:27]} Qb4 {[%emt 0:05:36]} 26. Qxb4 {[%emt 0:01:16]} axb4 {[%emt 0:00:04]} 27. Rc7 {[%emt 0:00:10]} Kf8 {[%emt 0:01:52]} 28. Rxb7 {[%emt 0:05:46]} ({Better is} 28. Bxb7 $14 Re7 29. Be4) 28... Rxb7 $11 {[%emt 0:01:32]} 29. Bxb7 $14 {[%emt 0:00:01][%mdl 4096] Endgame KRB-KRB} Re7 {[%emt 0:00:35]} 30. Ba6 {[%emt 0:03:51]} Ra7 {[%emt 0:01:39]} 31. Bc4 {[%emt 0:00:18]} Rc7 $1 {[%emt 0:00:31] ...b5 is the strong threat.} 32. Rc2 $2 {[%emt 0:00:33][%mdl 8192] [#]} ({White should try} 32. Rd1 $15) 32... Rc5 $2 {[%emt 0:00:22]} (32... b5 $1 $19 {[%cal Rb5c4]} 33. Bb3 {[#]} Rc3 $1 34. bxc3 Bxb3 35. cxb4 (35. Rb2 $2 dxc3 36. Rxb3 c2 $19) 35... Bxc2) 33. e3 $2 {[%emt 0:01:16]} ({White has to play} 33. Rd2 $1 $15) 33... b3 $2 {[%emt 0:04:00]} (33... dxe3 $19 {Threatens to win with ...b5.} 34. fxe3 Ke7) 34. Rc1 $2 {[%emt 0:00:44][%mdl 8192]} (34. Re2 $11) 34... b5 $19 {[%emt 0:01:34] Black is clearly winning.} 35. exd4 {[%emt 0:00:05]} Rc8 {[%emt 0:00:36][%mdl 64] Pin} 36. d5 {[%emt 0:00:30]} Bxd5 {[%emt 0:00:19]} 37. Bxd5 {[%emt 0:00:04]} Rxc1+ {[%emt 0:00:04]} 38. Kg2 {[%emt 0:00:02]} Rc2 {[%emt 0:00:30]} 39. Bxb3 {[%emt 0:00:04]} Rxb2 {[%emt 0:00:05]} 40. Bd5 {[%emt 0:00:00]} Rd2 {[%emt 0:00:00]} 41. Bc6 {[%emt 0:00:15]} b4 {[%emt 0:00:51] Weighted Error Value: White=0.68/Black=0.32} 0-1